[Event "Titled Tuesday Blitz July 20 2021"]
[White "Ezat, Mohamed"]
[Black "Levine, Joseph"]
[WhiteFideId "10600906"]
[BlackFideId "30940346"]
[WhiteElo "2414"]
[BlackElo "1802"]
[Result "1-0"]
[Round "09"]
[TimeControl "180+1"]
[Date "2021.07.21"]
[WhiteClock "0:01:47"]
[BlackClock "0:00:06"]

1. d4 {[%clk 0:02:58]}  d5 {[%clk 0:02:56]} 2. c4 {[%clk 0:02:58]}  e6 {[%clk 0:02:56]} 3. Nc3 {[%clk 0:02:59]}  Nf6 {[%clk 0:02:56]} 4. cxd5 {[%clk 0:02:59]}  exd5 {[%clk 0:02:56]} 5. Bg5 {[%clk 0:03:00]}  c6 {[%clk 0:02:57]} 6. Qc2 {[%clk 0:03:00]}  Bd6 {[%clk 0:02:57]} 7. e3 {[%clk 0:03:00]}  O-O {[%clk 0:02:57]} 8. Bd3 {[%clk 0:03:01]}  h6 {[%clk 0:02:58]} 9. Bh4 {[%clk 0:03:01]}  Re8 {[%clk 0:02:58]} 10. Nf3 {[%clk 0:02:59]}  Be6 {[%clk 0:02:58]} 11. Ne5 {[%clk 0:02:59]}  c5 {[%clk 0:02:57]} 12. O-O {[%clk 0:02:56]}  Nc6 {[%clk 0:02:53]} 13. Nxc6 {[%clk 0:02:45]}  bxc6 {[%clk 0:02:54]} 14. Bg3 {[%clk 0:02:44]}  Bxg3 {[%clk 0:02:49]} 15. hxg3 {[%clk 0:02:43]}  cxd4 {[%clk 0:02:45]} 16. exd4 {[%clk 0:02:43]}  Ng4 {[%clk 0:02:43]} 17. Be2 {[%clk 0:02:42]}  Qg5 {[%clk 0:02:35]} 18. Bxg4 {[%clk 0:02:42]}  Qxg4 {[%clk 0:02:35]} 19. Qd2 {[%clk 0:02:38]}  h5 {[%clk 0:02:23]} 20. Rfe1 {[%clk 0:02:35]}  h4 {[%clk 0:02:16]} 21. gxh4 {[%clk 0:02:33]}  Qxh4 {[%clk 0:02:17]} 22. Re5 {[%clk 0:02:33]}  g6 {[%clk 0:02:15]} 23. Rae1 {[%clk 0:02:30]}  Kg7 {[%clk 0:02:15]} 24. Qg5 {[%clk 0:02:22]}  Qxg5 {[%clk 0:02:06]} 25. Rxg5 {[%clk 0:02:21]}  Bf5 {[%clk 0:02:06]} 26. Re3 {[%clk 0:02:20]}  Rxe3 {[%clk 0:01:38]} 27. fxe3 {[%clk 0:02:19]}  Re8 {[%clk 0:01:03]} 28. Kf2 {[%clk 0:02:18]}  Rh8 {[%clk 0:00:49]} 29. Kg1 {[%clk 0:02:16]}  Re8 {[%clk 0:00:46]} 30. Rg3 {[%clk 0:02:16]}  Be4 {[%clk 0:00:46]} 31. Kf2 {[%clk 0:02:10]}  f5 {[%clk 0:00:46]} 32. Rh3 {[%clk 0:02:08]}  Rb8 {[%clk 0:00:36]} 33. b3 {[%clk 0:02:07]}  a5 {[%clk 0:00:29]} 34. Rh1 {[%clk 0:02:06]}  g5 {[%clk 0:00:21]} 35. Rc1 {[%clk 0:02:05]}  Rh8 {[%clk 0:00:19]} 36. Nxe4 {[%clk 0:02:04]}  dxe4 {[%clk 0:00:14]} 37. Rxc6 {[%clk 0:02:03]}  f4 {[%clk 0:00:12]} 38. Rc5 {[%clk 0:02:03]}  Kg6 {[%clk 0:00:12]} 39. Rxa5 {[%clk 0:02:03]}  Rh1 {[%clk 0:00:11]} 40. Re5 {[%clk 0:02:01]}  Ra1 {[%clk 0:00:10]} 41. Rxe4 {[%clk 0:02:00]}  Rxa2+ {[%clk 0:00:10]} 42. Kf3 {[%clk 0:02:00]}  Kf5 {[%clk 0:00:08]} 43. Re5+ {[%clk 0:01:59]}  Kf6 {[%clk 0:00:08]} 44. exf4 {[%clk 0:02:00]}  gxf4 {[%clk 0:00:08]} 45. Rb5 {[%clk 0:01:58]}  Rb2 {[%clk 0:00:08]} 46. b4 {[%clk 0:01:54]}  Ke6 {[%clk 0:00:08]} 47. Re5+ {[%clk 0:01:50]}  Kd6 {[%clk 0:00:07]} 48. b5 {[%clk 0:01:50]}  Kc7 {[%clk 0:00:05]} 49. Rg5 {[%clk 0:01:48]}  Kd6 {[%clk 0:00:06]} 50. Kxf4 {[%clk 0:01:47]} 1-0


[Site "https://www.chess.com"]

[Event "Titled Tuesday Blitz July 20 2021"]
[White "Garcia Ramos, Daniel"]
[Black "Preotu, Razvan"]
[WhiteFideId "32010311"]
[BlackFideId "2613280"]
[WhiteElo "2321"]
[BlackElo "2407"]
[Result "1-0"]
[Round "09"]
[TimeControl "180+1"]
[Date "2021.07.20"]
[WhiteClock "0:00:04"]
[BlackClock "0:00:02"]

1. c4 {[%clk 0:03:00]}  c5 {[%clk 0:02:58]} 2. Nf3 {[%clk 0:03:00]}  Nc6 {[%clk 0:02:57]} 3. g3 {[%clk 0:03:01]}  g6 {[%clk 0:02:50]} 4. Bg2 {[%clk 0:03:01]}  Bg7 {[%clk 0:02:50]} 5. O-O {[%clk 0:03:02]}  e5 {[%clk 0:02:50]} 6. Nc3 {[%clk 0:02:59]}  d6 {[%clk 0:02:49]} 7. a3 {[%clk 0:02:57]}  a5 {[%clk 0:02:45]} 8. Ne1 {[%clk 0:02:53]}  Be6 {[%clk 0:02:43]} 9. d3 {[%clk 0:02:53]}  Nge7 {[%clk 0:02:43]} 10. Nc2 {[%clk 0:02:50]}  d5 {[%clk 0:02:42]} 11. cxd5 {[%clk 0:02:49]}  Nxd5 {[%clk 0:02:43]} 12. Ne4 {[%clk 0:02:39]}  b6 {[%clk 0:02:41]} 13. Ng5 {[%clk 0:02:32]}  Bc8 {[%clk 0:02:39]} 14. Ne3 {[%clk 0:02:18]}  Nde7 {[%clk 0:02:35]} 15. Qa4 {[%clk 0:02:13]}  Bd7 {[%clk 0:02:18]} 16. Nc4 {[%clk 0:01:31]}  O-O {[%clk 0:02:13]} 17. Nd6 {[%clk 0:01:19]}  Nd4 {[%clk 0:02:04]} 18. Qc4 {[%clk 0:01:11]}  b5 {[%clk 0:01:36]} 19. Qa2 {[%clk 0:00:47]}  c4 {[%clk 0:01:03]} 20. dxc4 {[%clk 0:00:46]}  Nxe2+ {[%clk 0:00:59]} 21. Kh1 {[%clk 0:00:46]}  Bc6 {[%clk 0:00:43]} 22. c5 {[%clk 0:00:41]}  Nxc1 {[%clk 0:00:19]} 23. Raxc1 {[%clk 0:00:39]}  Bxg2+ {[%clk 0:00:07]} 24. Kxg2 {[%clk 0:00:40]}  Qd7 {[%clk 0:00:03]} 25. Ngxf7 {[%clk 0:00:35]}  Qc6+ {[%clk 0:00:03]} 26. Kg1 {[%clk 0:00:29]}  Qd5 {[%clk 0:00:02]} 27. Qxd5 {[%clk 0:00:24]}  Nxd5 {[%clk 0:00:03]} 28. Rfd1 {[%clk 0:00:21]}  Ne7 {[%clk 0:00:03]} 29. Ng5 {[%clk 0:00:21]}  Bh6 {[%clk 0:00:03]} 30. h4 {[%clk 0:00:17]}  Nc6 {[%clk 0:00:03]} 31. Nde4 {[%clk 0:00:12]}  Nd4 {[%clk 0:00:03]} 32. Kg2 {[%clk 0:00:10]}  Rac8 {[%clk 0:00:03]} 33. b4 {[%clk 0:00:10]}  axb4 {[%clk 0:00:04]} 34. axb4 {[%clk 0:00:11]}  Ra8 {[%clk 0:00:04]} 35. Ra1 {[%clk 0:00:10]}  Ra4 {[%clk 0:00:03]} 36. Rxa4 {[%clk 0:00:10]}  bxa4 {[%clk 0:00:04]} 37. Ra1 {[%clk 0:00:10]}  Bxg5 {[%clk 0:00:05]} 38. hxg5 {[%clk 0:00:10]}  Ra8 {[%clk 0:00:05]} 39. Nc3 {[%clk 0:00:09]}  a3 {[%clk 0:00:05]} 40. b5 {[%clk 0:00:10]}  Nc2 {[%clk 0:00:04]} 41. Ra2 {[%clk 0:00:08]}  Nb4 {[%clk 0:00:04]} 42. Ra1 {[%clk 0:00:03]}  a2 {[%clk 0:00:05]} 43. c6 {[%clk 0:00:02]}  Kf7 {[%clk 0:00:02]} 44. c7 {[%clk 0:00:02]}  Ke7 {[%clk 0:00:02]} 45. b6 {[%clk 0:00:03]}  Kd7 {[%clk 0:00:02]} 46. b7 {[%clk 0:00:03]}  Ra7 {[%clk 0:00:02]} 47. b8=Q {[%clk 0:00:04]} 1-0


[Site "https://www.chess.com"]

[Event "Titled Tuesday Blitz July 20 2021"]
[White "Gavilan Diaz, Mario"]
[Black "Gurevich, Dmitry"]
[WhiteFideId "2260905"]
[BlackFideId "2000407"]
[WhiteElo "2262"]
[BlackElo "2506"]
[Result "0-1"]
[Round "09"]
[TimeControl "180+1"]
[Date "2021.07.21"]
[WhiteClock "0:01:12"]
[BlackClock "0:01:08"]

1. d4 {[%clk 0:03:00]}  Nf6 {[%clk 0:02:58]} 2. c4 {[%clk 0:03:01]}  a6 {[%clk 0:02:58]} 3. Nc3 {[%clk 0:02:59]}  c5 {[%clk 0:02:58]} 4. d5 {[%clk 0:02:58]}  b5 {[%clk 0:02:57]} 5. b3 {[%clk 0:02:50]}  b4 {[%clk 0:02:54]} 6. Nb1 {[%clk 0:02:46]}  g6 {[%clk 0:02:51]} 7. Bb2 {[%clk 0:02:46]}  Bg7 {[%clk 0:02:51]} 8. e4 {[%clk 0:02:46]}  d6 {[%clk 0:02:48]} 9. Bd3 {[%clk 0:02:45]}  O-O {[%clk 0:02:46]} 10. Ne2 {[%clk 0:02:45]}  a5 {[%clk 0:02:39]} 11. a4 {[%clk 0:02:41]}  bxa3 {[%clk 0:02:39]} 12. Nxa3 {[%clk 0:02:38]}  Na6 {[%clk 0:02:38]} 13. Nc2 {[%clk 0:02:30]}  e6 {[%clk 0:02:32]} 14. O-O {[%clk 0:02:29]}  exd5 {[%clk 0:02:32]} 15. cxd5 {[%clk 0:02:29]}  Bb7 {[%clk 0:02:19]} 16. Nc3 {[%clk 0:02:25]}  Nd7 {[%clk 0:02:11]} 17. Na4 {[%clk 0:02:21]}  Bxb2 {[%clk 0:02:09]} 18. Nxb2 {[%clk 0:02:22]}  Nb4 {[%clk 0:02:08]} 19. Nc4 {[%clk 0:02:18]}  Nxd3 {[%clk 0:01:44]} 20. Qxd3 {[%clk 0:02:18]}  Ba6 {[%clk 0:01:39]} 21. Qc3 {[%clk 0:02:11]}  Qf6 {[%clk 0:01:17]} 22. Qxa5 {[%clk 0:01:37]}  Bxc4 {[%clk 0:01:15]} 23. Qxa8 {[%clk 0:01:37]}  Bxf1 {[%clk 0:01:11]} 24. Qb7 {[%clk 0:01:32]}  Bd3 {[%clk 0:01:10]} 25. Qxd7 {[%clk 0:01:13]}  Bxc2 {[%clk 0:01:10]} 26. Re1 {[%clk 0:01:12]}  Bxe4 {[%clk 0:01:08]} 0-1


[Site "https://www.chess.com"]

[Event "Titled Tuesday Blitz July 20 2021"]
[White "Golubenko, Valentina"]
[Black "Mazi, Leon"]
[WhiteFideId "4501993"]
[BlackFideId "14600315"]
[WhiteElo "2164"]
[BlackElo "2333"]
[Result "0-1"]
[Round "09"]
[TimeControl "180+1"]
[Date "2021.07.21"]
[WhiteClock "0:01:38"]
[BlackClock "0:02:17"]

1. d4 {[%clk 0:03:00]}  d5 {[%clk 0:02:59]} 2. g3 {[%clk 0:03:00]}  Nf6 {[%clk 0:02:58]} 3. Bg2 {[%clk 0:03:01]}  c6 {[%clk 0:02:57]} 4. Nf3 {[%clk 0:03:01]}  Bf5 {[%clk 0:02:56]} 5. O-O {[%clk 0:03:01]}  h6 {[%clk 0:02:54]} 6. Nbd2 {[%clk 0:03:01]}  e6 {[%clk 0:02:53]} 7. c4 {[%clk 0:03:01]}  Be7 {[%clk 0:02:51]} 8. b3 {[%clk 0:03:01]}  O-O {[%clk 0:02:51]} 9. Bb2 {[%clk 0:03:01]}  a5 {[%clk 0:02:47]} 10. Rc1 {[%clk 0:02:58]}  a4 {[%clk 0:02:44]} 11. bxa4 {[%clk 0:02:58]}  Qa5 {[%clk 0:02:43]} 12. Qb3 {[%clk 0:02:32]}  Nbd7 {[%clk 0:02:19]} 13. Bc3 {[%clk 0:01:38]}  Qxa4 {[%clk 0:02:18]} 14. Qb6 {[%clk 0:01:38]}  Nxb6 {[%clk 0:02:17]} 0-1


[Site "https://www.chess.com"]

[Event "Titled Tuesday Blitz July 20 2021"]
[White "Golubev, Mikhail"]
[Black "Tsaruk, Maksim"]
[WhiteFideId "14100983"]
[BlackFideId "13511173"]
[WhiteElo "2374"]
[BlackElo "2184"]
[Result "1-0"]
[Round "09"]
[TimeControl "180+1"]
[Date "2021.07.20"]
[WhiteClock "0:00:03"]
[BlackClock "0:00:02"]

1. e4 {[%clk 0:03:00]}  e5 {[%clk 0:01:57]} 2. Nf3 {[%clk 0:02:59]}  Nc6 {[%clk 0:01:57]} 3. Bb5 {[%clk 0:02:59]}  a6 {[%clk 0:01:58]} 4. Ba4 {[%clk 0:02:59]}  Nf6 {[%clk 0:01:58]} 5. O-O {[%clk 0:02:58]}  b5 {[%clk 0:01:58]} 6. Bb3 {[%clk 0:02:57]}  Be7 {[%clk 0:01:59]} 7. d3 {[%clk 0:02:51]}  O-O {[%clk 0:01:55]} 8. a3 {[%clk 0:02:48]}  d6 {[%clk 0:01:55]} 9. Nc3 {[%clk 0:02:48]}  Bg4 {[%clk 0:01:49]} 10. Be3 {[%clk 0:02:42]}  Nd4 {[%clk 0:01:50]} 11. Bxd4 {[%clk 0:02:40]}  exd4 {[%clk 0:01:50]} 12. Nb1 {[%clk 0:02:39]}  c5 {[%clk 0:01:43]} 13. Nbd2 {[%clk 0:02:38]}  d5 {[%clk 0:01:42]} 14. exd5 {[%clk 0:02:34]}  Nxd5 {[%clk 0:01:40]} 15. h3 {[%clk 0:02:35]}  Bh5 {[%clk 0:01:40]} 16. Re1 {[%clk 0:02:35]}  Re8 {[%clk 0:01:38]} 17. Re5 {[%clk 0:02:26]}  Nf4 {[%clk 0:01:03]} 18. Rxh5 {[%clk 0:02:16]}  Nxh5 {[%clk 0:01:04]} 19. Ne5 {[%clk 0:02:15]}  c4 {[%clk 0:01:03]} 20. dxc4 {[%clk 0:02:08]}  Bg5 {[%clk 0:00:39]} 21. Nxf7 {[%clk 0:01:49]}  Kxf7 {[%clk 0:00:40]} 22. Qxh5+ {[%clk 0:01:44]}  Kg8 {[%clk 0:00:40]} 23. cxb5+ {[%clk 0:01:44]}  Kh8 {[%clk 0:00:40]} 24. Nf3 {[%clk 0:01:38]}  Bf6 {[%clk 0:00:39]} 25. bxa6 {[%clk 0:01:24]}  Rxa6 {[%clk 0:00:40]} 26. Rd1 {[%clk 0:01:20]}  Ra5 {[%clk 0:00:30]} 27. Qf7 {[%clk 0:01:12]}  Re7 {[%clk 0:00:17]} 28. Qc4 {[%clk 0:01:11]}  Rc7 {[%clk 0:00:16]} 29. Qd3 {[%clk 0:01:11]}  Rd7 {[%clk 0:00:14]} 30. c3 {[%clk 0:01:07]}  Qb8 {[%clk 0:00:03]} 31. cxd4 {[%clk 0:01:05]}  Rb7 {[%clk 0:00:03]} 32. Bc2 {[%clk 0:01:05]}  g6 {[%clk 0:00:03]} 33. b4 {[%clk 0:01:05]}  Ra8 {[%clk 0:00:02]} 34. Rb1 {[%clk 0:00:51]}  Rb6 {[%clk 0:00:03]} 35. h4 {[%clk 0:00:42]}  Ra7 {[%clk 0:00:03]} 36. h5 {[%clk 0:00:42]}  gxh5 {[%clk 0:00:03]} 37. b5 {[%clk 0:00:35]}  Qf8 {[%clk 0:00:03]} 38. a4 {[%clk 0:00:35]}  Bd8 {[%clk 0:00:04]} 39. Ne5 {[%clk 0:00:33]}  Rf6 {[%clk 0:00:03]} 40. Qe3 {[%clk 0:00:17]}  Bb6 {[%clk 0:00:03]} 41. Rf1 {[%clk 0:00:14]}  Re7 {[%clk 0:00:03]} 42. Qe4 {[%clk 0:00:14]}  Qg7 {[%clk 0:00:03]} 43. Qd5 {[%clk 0:00:10]}  Rf8 {[%clk 0:00:03]} 44. Rd1 {[%clk 0:00:08]}  Rd8 {[%clk 0:00:02]} 45. Qf3 {[%clk 0:00:07]}  Bxd4 {[%clk 0:00:02]} 46. Nc6 {[%clk 0:00:06]}  Bxf2+ {[%clk 0:00:02]} 47. Qxf2 {[%clk 0:00:03]}  Rxd1+ {[%clk 0:00:03]} 48. Bxd1 {[%clk 0:00:04]}  Rd7 {[%clk 0:00:04]} 49. Bf3 {[%clk 0:00:03]}  h4 {[%clk 0:00:03]} 50. Qe3 {[%clk 0:00:03]}  h6 {[%clk 0:00:02]} 51. Qe8+ {[%clk 0:00:02]}  Kh7 {[%clk 0:00:02]} 52. Be4+ {[%clk 0:00:03]} 1-0


[Site "https://www.chess.com"]

[Event "Titled Tuesday Blitz July 20 2021"]
[White "Hebden, Mark L"]
[Black "DieHardCuban"]
[WhiteFideId "400084"]
[WhiteElo "2457"]
[BlackElo "2466"]
[Result "1-0"]
[Round "09"]
[TimeControl "180+1"]
[Date "2021.07.21"]
[WhiteClock "0:00:13"]
[BlackClock "0:00:02"]

1. d4 {[%clk 0:02:50]}  Nf6 {[%clk 0:02:57]} 2. Nf3 {[%clk 0:02:51]}  d5 {[%clk 0:02:56]} 3. c4 {[%clk 0:02:50]}  e6 {[%clk 0:02:56]} 4. Bg5 {[%clk 0:02:50]}  c6 {[%clk 0:02:24]} 5. Nbd2 {[%clk 0:02:48]}  Qa5 {[%clk 0:02:19]} 6. Bxf6 {[%clk 0:02:46]}  gxf6 {[%clk 0:02:19]} 7. e3 {[%clk 0:02:46]}  Nd7 {[%clk 0:02:16]} 8. a3 {[%clk 0:02:45]}  f5 {[%clk 0:02:04]} 9. Bd3 {[%clk 0:02:39]}  Rg8 {[%clk 0:01:54]} 10. O-O {[%clk 0:02:38]}  Qc7 {[%clk 0:01:53]} 11. g3 {[%clk 0:02:35]}  Bd6 {[%clk 0:01:46]} 12. Qe2 {[%clk 0:02:23]}  Nf6 {[%clk 0:01:44]} 13. Rac1 {[%clk 0:02:20]}  Qe7 {[%clk 0:01:42]} 14. Ne5 {[%clk 0:02:16]}  Bxe5 {[%clk 0:01:41]} 15. dxe5 {[%clk 0:02:16]}  Nd7 {[%clk 0:01:40]} 16. f4 {[%clk 0:02:14]}  Nc5 {[%clk 0:01:36]} 17. Nf3 {[%clk 0:02:09]}  Bd7 {[%clk 0:01:33]} 18. cxd5 {[%clk 0:02:03]}  cxd5 {[%clk 0:01:32]} 19. b4 {[%clk 0:01:56]}  Nxd3 {[%clk 0:01:24]} 20. Qxd3 {[%clk 0:01:55]}  Kf8 {[%clk 0:01:21]} 21. Nd4 {[%clk 0:01:48]}  Qd8 {[%clk 0:01:01]} 22. Rc2 {[%clk 0:01:40]}  h5 {[%clk 0:00:59]} 23. Rg2 {[%clk 0:01:30]}  Rc8 {[%clk 0:00:56]} 24. Nf3 {[%clk 0:01:24]}  Qb6 {[%clk 0:00:54]} 25. Qd4 {[%clk 0:01:24]}  Qa6 {[%clk 0:00:49]} 26. Ng5 {[%clk 0:01:10]}  Qxa3 {[%clk 0:00:27]} 27. Nh7+ {[%clk 0:01:00]}  Ke7 {[%clk 0:00:20]} 28. Nf6 {[%clk 0:00:59]}  Rc4 {[%clk 0:00:15]} 29. Nxg8+ {[%clk 0:00:47]}  Kf8 {[%clk 0:00:15]} 30. Qa1 {[%clk 0:00:44]}  Qxe3+ {[%clk 0:00:11]} 31. Rgf2 {[%clk 0:00:36]}  Kxg8 {[%clk 0:00:12]} 32. Re1 {[%clk 0:00:30]}  Qb6 {[%clk 0:00:10]} 33. Qa5 {[%clk 0:00:24]}  Rxb4 {[%clk 0:00:09]} 34. Qxb6 {[%clk 0:00:24]}  Rxb6 {[%clk 0:00:10]} 35. Ra2 {[%clk 0:00:22]}  a6 {[%clk 0:00:10]} 36. Rc1 {[%clk 0:00:21]}  Bc6 {[%clk 0:00:09]} 37. Rcc2 {[%clk 0:00:20]}  Rb4 {[%clk 0:00:09]} 38. Kg2 {[%clk 0:00:19]}  Rd4 {[%clk 0:00:09]} 39. Kh3 {[%clk 0:00:19]}  Kg7 {[%clk 0:00:09]} 40. Kh4 {[%clk 0:00:19]}  Kg6 {[%clk 0:00:10]} 41. Rab2 {[%clk 0:00:19]}  Rc4 {[%clk 0:00:08]} 42. Rd2 {[%clk 0:00:18]}  b5 {[%clk 0:00:08]} 43. Ra2 {[%clk 0:00:17]}  Bb7 {[%clk 0:00:08]} 44. Rdb2 {[%clk 0:00:16]}  b4 {[%clk 0:00:08]} 45. Ra4 {[%clk 0:00:16]}  d4 {[%clk 0:00:06]} 46. Raxb4 {[%clk 0:00:15]}  Bd5 {[%clk 0:00:06]} 47. Rxc4 {[%clk 0:00:15]}  Bxc4 {[%clk 0:00:06]} 48. Rb4 {[%clk 0:00:15]}  Bd5 {[%clk 0:00:04]} 49. Rxd4 {[%clk 0:00:15]}  Kg7 {[%clk 0:00:04]} 50. Ra4 {[%clk 0:00:15]}  Bb7 {[%clk 0:00:04]} 51. Rb4 {[%clk 0:00:16]}  Bc6 {[%clk 0:00:03]} 52. Kxh5 {[%clk 0:00:16]}  a5 {[%clk 0:00:03]} 53. Rb6 {[%clk 0:00:15]}  Be8 {[%clk 0:00:02]} 54. Kg5 {[%clk 0:00:15]}  a4 {[%clk 0:00:02]} 55. Ra6 {[%clk 0:00:15]}  Bd7 {[%clk 0:00:02]} 56. Ra7 {[%clk 0:00:15]}  Bb5 {[%clk 0:00:02]} 57. h3 {[%clk 0:00:15]}  Be8 {[%clk 0:00:01]} 58. g4 {[%clk 0:00:15]}  fxg4 {[%clk 0:00:02]} 59. hxg4 {[%clk 0:00:15]}  Bb5 {[%clk 0:00:03]} 60. f5 {[%clk 0:00:15]}  exf5 {[%clk 0:00:02]} 61. gxf5 {[%clk 0:00:15]}  Be8 {[%clk 0:00:02]} 62. e6 {[%clk 0:00:15]}  Kf8 {[%clk 0:00:01]} 63. Kf6 {[%clk 0:00:15]}  fxe6 {[%clk 0:00:01]} 64. fxe6 {[%clk 0:00:15]}  Kg8 {[%clk 0:00:01]} 65. Ra8 {[%clk 0:00:14]}  Kh7 {[%clk 0:00:01]} 66. Rxe8 {[%clk 0:00:13]}  a3 {[%clk 0:00:02]} 67. Ra8 {[%clk 0:00:13]} 1-0


[Site "https://www.chess.com"]

[Event "Titled Tuesday Blitz July 20 2021"]
[White "Janaszak, Dawid"]
[Black "Sinitsina, Anastassia"]
[WhiteFideId "1119206"]
[BlackFideId "4504640"]
[WhiteElo "2332"]
[BlackElo "2204"]
[Result "1/2-1/2"]
[Round "09"]
[TimeControl "180+1"]
[Date "2021.07.21"]
[WhiteClock "0:00:04"]
[BlackClock "0:00:04"]

1. e4 {[%clk 0:02:49]}  e5 {[%clk 0:02:59]} 2. Nc3 {[%clk 0:02:47]}  Nf6 {[%clk 0:02:57]} 3. d4 {[%clk 0:02:47]}  exd4 {[%clk 0:02:57]} 4. Qxd4 {[%clk 0:02:48]}  Nc6 {[%clk 0:02:58]} 5. Qd3 {[%clk 0:02:48]}  Bb4 {[%clk 0:02:58]} 6. Bd2 {[%clk 0:02:47]}  O-O {[%clk 0:02:58]} 7. O-O-O {[%clk 0:02:47]}  Re8 {[%clk 0:02:58]} 8. Nge2 {[%clk 0:02:47]}  Be7 {[%clk 0:02:52]} 9. g4 {[%clk 0:02:45]}  Nxg4 {[%clk 0:02:48]} 10. Rg1 {[%clk 0:02:45]}  Nge5 {[%clk 0:02:38]} 11. Qg3 {[%clk 0:02:44]}  Bf8 {[%clk 0:02:37]} 12. Nd5 {[%clk 0:02:35]}  d6 {[%clk 0:02:35]} 13. Bg5 {[%clk 0:02:34]}  Qd7 {[%clk 0:02:20]} 14. f4 {[%clk 0:02:13]}  Ng6 {[%clk 0:02:13]} 15. f5 {[%clk 0:02:12]}  Rxe4 {[%clk 0:02:08]} 16. fxg6 {[%clk 0:02:04]}  hxg6 {[%clk 0:02:08]} 17. Nef4 {[%clk 0:01:56]}  Nb4 {[%clk 0:01:42]} 18. Nxb4 {[%clk 0:01:43]}  Rxb4 {[%clk 0:01:41]} 19. a3 {[%clk 0:01:34]}  Re4 {[%clk 0:01:33]} 20. Bd3 {[%clk 0:01:33]}  Re5 {[%clk 0:01:27]} 21. Nxg6 {[%clk 0:01:28]}  fxg6 {[%clk 0:01:09]} 22. Bc4+ {[%clk 0:01:16]}  Re6 {[%clk 0:01:08]} 23. Rge1 {[%clk 0:00:57]}  Qf7 {[%clk 0:01:02]} 24. Rf1 {[%clk 0:00:54]}  Qe8 {[%clk 0:00:58]} 25. Rde1 {[%clk 0:00:48]}  c6 {[%clk 0:00:52]} 26. Bxe6+ {[%clk 0:00:30]}  Bxe6 {[%clk 0:00:51]} 27. Qe3 {[%clk 0:00:19]}  Bf7 {[%clk 0:00:48]} 28. Qd3 {[%clk 0:00:18]}  Qd7 {[%clk 0:00:45]} 29. Re3 {[%clk 0:00:17]}  Re8 {[%clk 0:00:32]} 30. Ref3 {[%clk 0:00:16]}  Bd5 {[%clk 0:00:28]} 31. R3f2 {[%clk 0:00:16]}  Be4 {[%clk 0:00:16]} 32. Qb3+ {[%clk 0:00:16]}  d5 {[%clk 0:00:15]} 33. h4 {[%clk 0:00:16]}  Bc5 {[%clk 0:00:14]} 34. Re2 {[%clk 0:00:15]}  Qg4 {[%clk 0:00:11]} 35. Rfe1 {[%clk 0:00:14]}  Rf8 {[%clk 0:00:09]} 36. Qxb7 {[%clk 0:00:12]}  Rf7 {[%clk 0:00:08]} 37. Qa8+ {[%clk 0:00:10]}  Kh7 {[%clk 0:00:07]} 38. Qxc6 {[%clk 0:00:11]}  Bd4 {[%clk 0:00:08]} 39. c3 {[%clk 0:00:10]}  Be5 {[%clk 0:00:07]} 40. Qc5 {[%clk 0:00:09]}  Bf4+ {[%clk 0:00:06]} 41. Bxf4 {[%clk 0:00:08]}  Qxf4+ {[%clk 0:00:07]} 42. Qe3 {[%clk 0:00:09]}  Qxh4 {[%clk 0:00:05]} 43. Qd2 {[%clk 0:00:08]}  Qf6 {[%clk 0:00:04]} 44. Rh2+ {[%clk 0:00:08]}  Kg8 {[%clk 0:00:05]} 45. Rhe2 {[%clk 0:00:08]}  Rf8 {[%clk 0:00:05]} 46. Qe3 {[%clk 0:00:08]}  Qf5 {[%clk 0:00:04]} 47. Qd4 {[%clk 0:00:07]}  Qf4+ {[%clk 0:00:04]} 48. Rd2 {[%clk 0:00:07]}  g5 {[%clk 0:00:04]} 49. Qe3 {[%clk 0:00:07]}  Qxe3 {[%clk 0:00:03]} 50. Rxe3 {[%clk 0:00:08]}  g4 {[%clk 0:00:04]} 51. Rg3 {[%clk 0:00:06]}  Bf3 {[%clk 0:00:04]} 52. b3 {[%clk 0:00:05]}  Kh7 {[%clk 0:00:04]} 53. c4 {[%clk 0:00:05]}  dxc4 {[%clk 0:00:04]} 54. bxc4 {[%clk 0:00:06]}  Rc8 {[%clk 0:00:04]} 55. Rc2 {[%clk 0:00:06]}  Kg6 {[%clk 0:00:05]} 56. Kd2 {[%clk 0:00:07]}  Kg5 {[%clk 0:00:05]} 57. Ke3 {[%clk 0:00:06]}  Re8+ {[%clk 0:00:04]} 58. Kd4 {[%clk 0:00:04]}  Kf4 {[%clk 0:00:04]} 59. Rg1 {[%clk 0:00:05]}  Rd8+ {[%clk 0:00:04]} 60. Kc3 {[%clk 0:00:04]}  g3 {[%clk 0:00:05]} 61. c5 {[%clk 0:00:04]}  g5 {[%clk 0:00:04]} 62. Kb4 {[%clk 0:00:04]}  Rb8+ {[%clk 0:00:03]} 63. Ka5 {[%clk 0:00:03]}  g2 {[%clk 0:00:04]} 64. c6 {[%clk 0:00:04]}  Kg3 {[%clk 0:00:03]} 65. c7 {[%clk 0:00:03]}  Rc8 {[%clk 0:00:04]} 66. Ka6 {[%clk 0:00:04]}  Kh2 {[%clk 0:00:04]} 67. Rgc1 {[%clk 0:00:03]}  Kh3 {[%clk 0:00:02]} 68. Kxa7 {[%clk 0:00:04]}  Kh2 {[%clk 0:00:02]} 69. Rd2 {[%clk 0:00:03]}  g4 {[%clk 0:00:02]} 70. Rdc2 {[%clk 0:00:02]}  Rxc7+ {[%clk 0:00:02]} 71. Rxc7 {[%clk 0:00:04]}  g1=Q+ {[%clk 0:00:02]} 72. Rxg1 {[%clk 0:00:01]}  Kxg1 {[%clk 0:00:02]} 73. Rg7 {[%clk 0:00:04]}  Kh2 {[%clk 0:00:01]} 74. Kb6 {[%clk 0:00:01]}  Kg2 {[%clk 0:00:02]} 75. Kc5 {[%clk 0:00:02]}  g3 {[%clk 0:00:02]} 76. Kd4 {[%clk 0:00:03]}  Kf2 {[%clk 0:00:03]} 77. a4 {[%clk 0:00:02]}  g2 {[%clk 0:00:03]} 78. Rxg2+ {[%clk 0:00:01]}  Bxg2 {[%clk 0:00:03]} 79. a5 {[%clk 0:00:02]}  Ke2 {[%clk 0:00:03]} 80. a6 {[%clk 0:00:03]}  Kd2 {[%clk 0:00:04]} 81. a7 {[%clk 0:00:03]}  Kc2 {[%clk 0:00:05]} 82. a8=Q {[%clk 0:00:04]}  Bxa8 {[%clk 0:00:04]} 1/2-1/2


[Site "https://www.chess.com"]

[Event "Titled Tuesday Blitz July 20 2021"]
[White "Khusnutdinov, Rustam"]
[Black "Dardha, Daniel"]
[WhiteFideId "13701703"]
[BlackFideId "240990"]
[WhiteElo "2571"]
[BlackElo "2489"]
[Result "1-0"]
[Round "09"]
[TimeControl "180+1"]
[Date "2021.07.20"]
[WhiteClock "0:02:08"]
[BlackClock "0:02:01"]

1. e4 {[%clk 0:03:00]}  e5 {[%clk 0:02:59]} 2. Nf3 {[%clk 0:02:59]}  Nf6 {[%clk 0:02:58]} 3. Nxe5 {[%clk 0:02:56]}  d6 {[%clk 0:02:57]} 4. Nf3 {[%clk 0:02:56]}  Nxe4 {[%clk 0:02:55]} 5. Nc3 {[%clk 0:02:57]}  Nxc3 {[%clk 0:02:54]} 6. dxc3 {[%clk 0:02:58]}  Be7 {[%clk 0:02:54]} 7. Be3 {[%clk 0:02:53]}  O-O {[%clk 0:02:54]} 8. Qd2 {[%clk 0:02:53]}  Nd7 {[%clk 0:02:54]} 9. O-O-O {[%clk 0:02:52]}  Nf6 {[%clk 0:02:52]} 10. Bd3 {[%clk 0:02:49]}  c5 {[%clk 0:02:52]} 11. Kb1 {[%clk 0:02:44]}  Be6 {[%clk 0:02:49]} 12. Rhe1 {[%clk 0:02:34]}  Qa5 {[%clk 0:02:48]} 13. c4 {[%clk 0:02:33]}  Qxd2 {[%clk 0:02:46]} 14. Bxd2 {[%clk 0:02:30]}  h6 {[%clk 0:02:37]} 15. Bc3 {[%clk 0:02:23]}  Rfe8 {[%clk 0:02:36]} 16. b3 {[%clk 0:02:18]}  Nd5 {[%clk 0:02:22]} 17. cxd5 {[%clk 0:02:13]}  Bxd5 {[%clk 0:02:00]} 18. Bh7+ {[%clk 0:02:12]}  Kxh7 {[%clk 0:02:01]} 19. Rxd5 {[%clk 0:02:13]}  Bf6 {[%clk 0:02:01]} 20. Rxe8 {[%clk 0:02:08]} 1-0


[Site "https://www.chess.com"]